bitfinex/quotes_BTCUSD_20250716
["timestamp","ask_amount","ask_price","bid_price","bid_amount"]
[1752704607271,1.08880893,119430.0,119420.0,0.01867904]
[1752704608159,1.09080893,119430.0,119420.0,0.01867904]
[1752704609457,1.09080893,119430.0,119420.0,0.003]
[1752704609661,1.09080893,119430.0,119420.0,0.01868442]
[1752704612399,1.09080893,119430.0,119420.0,0.003]
[1752704612609,1.09080893,119430.0,119420.0,0.01868406]
[1752704618298,1.09080893,119430.0,119420.0,0.003]
[1752704618489,1.09080893,119430.0,119420.0,0.01868379]
[1752704618698,0.75418095,119430.0,119420.0,0.01868379]
[1752704618838,1.09080893,119430.0,119420.0,0.01868379]
[1752704624395,1.09080893,119430.0,119420.0,0.01868192]
[1752704627156,1.09080893,119430.0,119420.0,0.003]
[1752704627365,1.09080893,119430.0,119420.0,0.01868077]
[1752704628054,0.92404893,119430.0,119420.0,0.05607077]
[1752704628276,1.05456893,119430.0,119420.0,0.05607077]
[1752704628984,1.05456893,119430.0,119420.0,0.02387077]
[1752704631503,1.05456893,119430.0,119420.0,0.05637077]
[1752704631504,0.92404893,119430.0,119420.0,0.05637077]
[1752704631722,0.58404893,119430.0,119420.0,0.05637077]
[1752704631903,0.37794095,119430.0,119420.0,0.05637077]
[1752704632149,0.71794095,119430.0,119420.0,0.05637077]
[1752704632360,0.37794095,119430.0,119420.0,0.05637077]
[1752704632597,0.71794095,119430.0,119420.0,0.05637077]
[1752704633016,0.96905865,119430.0,119420.0,0.05637077]
[1752704633441,0.83853865,119430.0,119420.0,0.05637077]
[1752704633665,0.50191067,119430.0,119420.0,0.05637077]
[1752704633882,0.16191067,119430.0,119420.0,0.05637077]
[1752704634098,0.19458085,119430.0,119420.0,0.2238469]
[1752704634959,0.19290568,119430.0,119420.0,0.2238469]
[1752704635391,0.19290568,119430.0,119420.0,0.3543669]
[1752704635818,0.19258085,119430.0,119420.0,0.3543669]
[1752704636031,0.17582035,119440.0,119430.0,0.16745733]
[1752704636246,0.02511825,119430.0,119420.0,0.64905777]
[1752704636489,0.04186361,119430.0,119420.0,0.70478848]
[1752704636699,0.03349114,119430.0,119420.0,0.69854482]
[1752704636916,0.03349114,119430.0,119420.0,0.69854489]
[1752704637128,0.04186424,119430.0,119420.0,0.36191691]
[1752704637340,0.03349114,119430.0,119420.0,0.3702905]
[1752704637569,0.03349114,119430.0,119420.0,0.37029057]
[1752704637786,0.03349114,119430.0,119420.0,0.35554311]
[1752704637787,0.20095325,119430.0,119420.0,0.35554311]
[1752704637992,0.19258106,119430.0,119420.0,0.05754698]
[1752704638201,0.52083615,119430.0,119420.0,0.05754698]
[1752704639275,0.52083615,119430.0,119420.0,0.18802698]
[1752704639488,0.60634643,119430.0,119420.0,0.02584698]
[1752704640799,0.60834643,119430.0,119420.0,0.02584698]
[1752704641222,0.60834643,119430.0,119420.0,0.02278698]
[1752704641650,0.60834643,119430.0,119420.0,0.02584698]
[1752704641863,0.60834643,119430.0,119420.0,0.02278698]
[1752704642004,0.60834643,119430.0,119420.0,0.02078698]
[1752704642456,0.60834643,119430.0,119420.0,0.02178698]
[1752704642653,0.26971845,119430.0,119420.0,0.02491698]
[1752704642861,0.60634643,119430.0,119420.0,0.02491698]
[1752704643635,0.26971845,119430.0,119420.0,0.02491698]
[1752704643841,0.60634643,119430.0,119420.0,0.02490307]
[1752704644889,0.60634643,119430.0,119420.0,0.02490226]
[1752704646264,0.18420817,119430.0,119420.0,0.05610226]
[1752704646937,0.52083615,119430.0,119420.0,0.05610226]
[1752704649442,0.18420817,119430.0,119420.0,0.05610226]
[1752704651999,0.52083615,119430.0,119420.0,0.05610226]
[1752704652386,0.52083615,119430.0,119420.0,0.02490226]
[1752704652583,0.52083615,119430.0,119420.0,0.02491008]
[1752704653815,0.52083615,119430.0,119420.0,0.15535008]
[1752704654736,0.52083615,119430.0,119420.0,0.02491008]
[1752704654961,0.52083615,119430.0,119420.0,0.15535008]
[1752704655846,0.52284615,119430.0,119420.0,0.15222008]
[1752704656068,0.63588596,119430.0,119420.0,0.02178008]
[1752704656286,0.65198596,119430.0,119420.0,0.01965008]
[1752704657365,0.99198596,119430.0,119420.0,0.01965008]
[1752704657587,0.99198596,119430.0,119420.0,0.01966949]
[1752704658732,0.99198596,119430.0,119420.0,0.01866949]
[1752704658962,0.99298596,119430.0,119420.0,0.01866949]
[1752704660061,0.65635798,119430.0,119420.0,0.01866949]
[1752704660280,0.99298596,119430.0,119420.0,0.01866949]
[1752704661335,0.99298596,119430.0,119420.0,0.003]
[1752704661491,0.99298596,119430.0,119420.0,0.01867415]
[1752704661901,0.99298596,119430.0,119420.0,0.003]
[1752704662109,0.99298596,119430.0,119420.0,0.01867258]
[1752704662536,0.99298596,119430.0,119420.0,0.01860158]
[1752704662746,1.12342596,119430.0,119420.0,0.01860158]
[1752704666493,1.12342596,119430.0,119420.0,0.00744001]
[1752704666936,0.99298596,119430.0,119420.0,0.00744001]
[1752704667158,0.74622596,119430.0,119420.0,0.01257001]
[1752704667372,1.08823596,119430.0,119420.0,0.01257001]
[1752704667785,1.08823596,119430.0,119420.0,0.00944001]
[1752704668229,1.10333596,119430.0,119420.0,0.00944001]
[1752704669171,1.08823596,119430.0,119420.0,0.00944001]
[1752704669387,1.08622596,119430.0,119420.0,0.01257001]
[1752704669813,1.08622596,119430.0,119420.0,0.04477001]
[1752704670030,0.1936477,119430.0,119420.0,0.04477001]
[1752704670248,0.18520817,119430.0,119420.0,0.03733]
[1752704670625,0.18520817,119430.0,119420.0,0.16777]
[1752704670858,0.18420817,119430.0,119420.0,0.16777]
[1752704672347,0.18420817,119430.0,119420.0,0.16877]
[1752704673351,0.18420817,119430.0,119420.0,0.16617]
[1752704673581,0.18420817,119430.0,119420.0,0.16829]
[1752704675960,0.17583521,119430.0,119420.0,0.33576613]
[1752704676619,0.16744809,119440.0,119430.0,0.0315]
[1752704676837,0.16744809,119440.0,119430.0,0.03656]
[1752704677074,0.16744809,119440.0,119430.0,0.13256]
[1752704677075,0.16953809,119440.0,119430.0,0.13256]
[1752704677510,0.17796256,119440.0,119430.0,0.13256]
[1752704677725,0.17587256,119440.0,119430.0,0.13256]
[1752704678122,0.51459054,119440.0,119430.0,0.00212]
[1752704678348,0.17583507,119430.0,119420.0,0.03544]
[1752704678584,0.51246305,119430.0,119420.0,0.18365753]
[1752704678800,0.51246305,119430.0,119420.0,0.168]
[1752704679017,0.51246305,119430.0,119420.0,0.18265771]
[1752704679448,0.17583507,119430.0,119420.0,0.05221771]
[1752704679684,0.17583507,119430.0,119420.0,0.16611771]
[1752704679900,0.17583507,119430.0,119420.0,0.16811771]
[1752704680118,0.17583507,119430.0,119420.0,0.16811706]
[1752704680741,0.17583507,119430.0,119420.0,0.02271706]
[1752704680973,0.17583507,119430.0,119420.0,0.15311706]
[1752704681831,0.17583507,119430.0,119420.0,0.13746]
[1752704682032,0.17583507,119430.0,119420.0,0.02271614]
[1752704682246,0.17583507,119430.0,119420.0,0.15017614]
[1752704682490,0.17583507,119430.0,119420.0,0.15311614]
[1752704683312,0.17583507,119430.0,119420.0,0.01977614]
[1752704683538,0.17792507,119430.0,119420.0,0.15017614]
[1752704683750,0.51763305,119430.0,119420.0,0.14805614]
[1752704685241,0.51763305,119430.0,119420.0,0.15017614]
[1752704685982,0.51763305,119430.0,119420.0,0.01977614]
[1752704686194,0.51763305,119430.0,119420.0,0.15017614]
[1752704687232,0.51763305,119430.0,119420.0,0.01977614]
[1752704687443,0.51763305,119430.0,119420.0,0.15017614]
[1752704687651,0.51455305,119430.0,119420.0,0.15017614]
[1752704687867,0.51455305,119430.0,119420.0,0.15017554]
[1752704688081,0.53303305,119430.0,119420.0,0.14805554]
[1752704688293,0.54863305,119430.0,119420.0,0.14805554]
[1752704688504,0.54863305,119430.0,119420.0,0.01765554]
[1752704688706,0.54863305,119430.0,119420.0,0.14805554]
[1752704688916,0.21200507,119430.0,119420.0,0.14805554]
[1752704689119,0.53303305,119430.0,119420.0,0.14805554]
[1752704689857,0.53303305,119430.0,119420.0,0.01765554]
[1752704690101,0.63484333,119430.0,119420.0,0.14805554]
[1752704692539,0.97484333,119430.0,119420.0,0.14801554]
[1752704693469,0.51583507,119430.0,119420.0,0.15013554]
[1752704693701,0.51583507,119430.0,119420.0,0.18458187]
[1752704693962,0.17583507,119430.0,119420.0,0.18458187]
[1752704696546,0.17583507,119430.0,119420.0,0.16892]
[1752704696747,0.17583507,119430.0,119420.0,0.18459477]
[1752704698254,0.51763305,119430.0,119420.0,0.15015477]
[1752704699029,0.53313305,119430.0,119420.0,0.15015477]
[1752704699209,0.51763305,119430.0,119420.0,0.15015477]
[1752704699669,0.51763305,119430.0,119420.0,0.15016618]
[1752704700262,0.53313305,119430.0,119420.0,0.15016618]
[1752704700442,0.54933305,119430.0,119420.0,0.14804618]
[1752704700993,0.63484333,119430.0,119420.0,0.14804618]
[1752704701686,0.97484333,119430.0,119420.0,0.14804618]
[1752704701915,1.10520333,119430.0,119420.0,0.01768618]
[1752704702112,0.97484333,119430.0,119420.0,0.01768618]
[1752704702353,0.97484333,119430.0,119420.0,0.14804618]
[1752704702570,0.97484333,119430.0,119420.0,0.01768618]
[1752704702835,0.97484333,119430.0,119420.0,0.01568618]
[1752704703765,0.97484333,119430.0,119420.0,1e-08]
[1752704703985,1.04219474,119430.0,119420.0,1e-08]
[1752704704232,1.19249521,119430.0,119420.0,1e-08]
[1752704704447,0.21543866,119410.0,119400.0,0.003]
[1752704704662,0.76995692,119410.0,119400.0,0.003]
[1752704705111,0.77317692,119410.0,119400.0,0.003]
[1752704705341,0.64285692,119410.0,119400.0,0.003]
[1752704705553,0.74197692,119410.0,119400.0,0.003]
[1752704705769,0.65670913,119410.0,119400.0,0.00509]
[1752704705982,0.65464913,119410.0,119400.0,0.02389]
[1752704706194,0.31460913,119410.0,119400.0,0.04009]
[1752704706851,0.31560913,119410.0,119400.0,0.04009]
[1752704707062,0.18528913,119410.0,119400.0,0.04009]
[1752704708810,0.18528913,119410.0,119400.0,0.00509]
[1752704709040,0.18528913,119410.0,119400.0,0.003]
[1752704709041,0.52719711,119410.0,119400.0,0.003]
[1752704709277,0.54249711,119410.0,119400.0,0.003]
[1752704709497,0.62800739,119410.0,119400.0,0.003]
[1752704709722,0.64460739,119410.0,119400.0,0.003]
[1752704710808,0.98460739,119410.0,119400.0,0.003]
[1752704715916,0.98460739,119410.0,119400.0,0.01864649]
[1752704716549,1.11492739,119410.0,119400.0,0.01864649]
[1752704718533,0.54857924,119400.0,119390.0,0.02274798]
[1752704718742,1.1063175,119400.0,119390.0,0.02274798]
[1752704719162,1.44294548,119400.0,119390.0,0.02274798]
[1752704720503,0.88522196,119390.0,119380.0,0.003]
[1752704720711,1.10633224,119390.0,119380.0,0.003]
[1752704721770,1.10633224,119390.0,119380.0,0.005]
[1752704725108,1.10633224,119390.0,119380.0,1e-08]
[1752704726960,0.54423669,119380.0,119370.0,1e-08]
[1752704727146,0.76212697,119380.0,119370.0,1e-08]
[1752704727405,0.42871899,119380.0,119370.0,1e-08]
[1752704727582,0.76534697,119380.0,119370.0,1e-08]
[1752704729107,1.10534697,119380.0,119370.0,1e-08]
[1752704729572,0.76871899,119380.0,119370.0,1e-08]
[1752704729761,0.20822345,119370.0,119360.0,0.0032]
[1752704729987,0.42611373,119370.0,119360.0,0.0032]
[1752704730166,0.42933373,119370.0,119360.0,0.0032]
[1752704730319,0.52433129,119350.0,119340.0,0.003]
[1752704730536,0.65465129,119350.0,119340.0,0.00509]
[1752704730735,0.65465129,119350.0,119340.0,0.02071155]
[1752704730985,0.99127927,119350.0,119340.0,0.0212168]
[1752704731201,0.99127927,119350.0,119340.0,0.02121703]
[1752704731848,0.99333927,119350.0,119340.0,0.02121703]
[1752704732079,0.99127927,119350.0,119340.0,0.02441703]
[1752704732289,0.99127927,119350.0,119340.0,0.05661703]
[1752704732730,0.65465129,119350.0,119340.0,0.05661703]
[1752704732967,0.52433129,119350.0,119340.0,0.02641703]
[1752704733081,0.65465129,119350.0,119340.0,0.02441703]
[1752704733301,0.65465129,119350.0,119340.0,0.01912703]
[1752704733302,1.12246872,119350.0,119340.0,0.01912703]
[1752704733714,1.10666872,119350.0,119340.0,0.01912703]
[1752704733920,1.08526872,119350.0,119340.0,0.05656703]
[1752704734126,1.08526872,119350.0,119340.0,0.02436703]
[1752704734353,0.74864074,119350.0,119340.0,0.02436703]
[1752704734550,1.08526872,119350.0,119340.0,0.02436703]
[1752704734991,0.74864074,119350.0,119340.0,0.02436703]
[1752704735326,1.08526872,119350.0,119340.0,0.02436703]
[1752704735500,1.08526872,119350.0,119340.0,0.02116703]
[1752704735710,1.08726872,119350.0,119340.0,0.02116703]
[1752704736099,1.08726872,119350.0,119340.0,0.05656703]
[1752704736303,0.87143844,119350.0,119340.0,0.05656703]
[1752704736504,0.18633129,119350.0,119340.0,0.39319501]
[1752704736709,0.18633129,119350.0,119340.0,0.22415543]
[1752704737152,0.18633129,119350.0,119340.0,0.05656703]
[1752704737505,0.17595293,119350.0,119340.0,0.05656703]
[1752704739235,0.17595293,119350.0,119340.0,0.04094525]
[1752704739448,0.17595293,119350.0,119340.0,0.05657201]
[1752704740081,0.17595293,119350.0,119340.0,0.05657275]
[1752704740286,0.17595293,119350.0,119340.0,0.22416115]
[1752704740490,0.17595293,119350.0,119340.0,0.05657275]
[1752704743056,0.17595293,119350.0,119340.0,0.22416115]
[1752704743286,0.17595293,119350.0,119340.0,0.05657275]
[1752704744828,0.17595293,119350.0,119340.0,0.05677275]
[1752704745077,0.51768091,119350.0,119340.0,0.01913275]
[1752704745286,0.53268091,119350.0,119340.0,0.01913275]
[1752704745485,0.54768091,119350.0,119340.0,0.01913275]
[1752704745820,0.97319119,119350.0,119340.0,0.01913275]
[1752704747989,0.97319119,119350.0,119340.0,0.00350525]
[1752704748215,0.97319119,119350.0,119340.0,0.01916619]
[1752704748699,0.97319119,119350.0,119340.0,0.00350525]
[1752704748941,0.97319119,119350.0,119340.0,0.01917088]
[1752704749169,0.97519119,119350.0,119340.0,0.01917088]
[1752704749399,0.97319119,119350.0,119340.0,0.01917088]
[1752704749855,0.97819119,119350.0,119340.0,0.02017088]
[1752704752304,0.52436219,119330.0,119320.0,0.0032]
[1752704752543,1.02661017,119330.0,119320.0,0.0032]
[1752704752770,1.02969017,119330.0,119320.0,0.00335022]
[1752704753188,1.11520045,119330.0,119320.0,0.00335022]
[1752704754842,0.77857247,119330.0,119320.0,0.00335022]
[1752704755042,0.78057247,119330.0,119320.0,0.00335022]
[1752704755255,1.11720045,119330.0,119320.0,0.00335022]
[1752704755459,1.10190045,119330.0,119320.0,0.00335022]
[1752704756251,1.11740045,119330.0,119320.0,0.00335022]
[1752704764618,1.11540045,119330.0,119320.0,0.00335022]
[1752704764994,1.11940045,119330.0,119320.0,0.00435022]
[1752704766339,1.15918951,119330.0,119320.0,0.00435022]
[1752704769404,1.01224866,119330.0,119320.0,0.00435022]
[1752704769606,1.14412866,119330.0,119320.0,0.00435022]
[1752704771102,1.14428866,119330.0,119320.0,0.00435022]
[1752704774743,0.80766068,119330.0,119320.0,0.00435022]
[1752704774944,1.01224866,119330.0,119320.0,0.00435022]
[1752704775248,1.14424866,119330.0,119320.0,0.00435022]
[1752704775670,1.14424866,119330.0,119320.0,1e-08]
[1752704776030,1.15878951,119330.0,119320.0,1e-08]
[1752704776246,1.49541749,119330.0,119320.0,1e-08]
[1752704777354,1.47016928,119330.0,119320.0,1e-08]
[1752704779018,1.1335413,119330.0,119320.0,1e-08]
[1752704779818,1.47016928,119330.0,119320.0,1e-08]
[1752704779969,1.1335413,119330.0,119320.0,1e-08]
[1752704781794,1.15876684,119330.0,119320.0,1e-08]
[1752704782062,0.86102107,119310.0,119300.0,0.0022]
[1752704782312,1.07845135,119310.0,119300.0,0.00772022]
[1752704782949,1.07845135,119310.0,119300.0,0.03782022]
[1752704783616,1.07845135,119310.0,119300.0,0.00448022]
[1752704784847,1.08045135,119310.0,119300.0,0.00548022]
[1752704785894,0.74382337,119310.0,119300.0,0.04072022]
[1752704786028,1.08045135,119310.0,119300.0,0.04072022]
[1752704786262,0.62044292,119310.0,119300.0,0.04072022]
[1752704786479,0.2031555,119310.0,119300.0,0.55547049]
[1752704786707,0.03552489,119310.0,119300.0,0.56175688]
[1752704786927,0.20315543,119310.0,119300.0,0.54499279]
[1752704787128,0.1863933,119310.0,119300.0,0.54499279]
[1752704788260,0.17801199,119310.0,119300.0,0.54499279]
[1752704788984,0.16963054,119310.0,119300.0,0.54499279]
[1752704789733,0.16963054,119310.0,119300.0,0.04072022]
[1752704790005,0.16963054,119310.0,119300.0,0.04281577]
[1752704790230,0.16963054,119310.0,119300.0,0.04072022]
[1752704791410,0.16963054,119310.0,119300.0,0.17248022]
[1752704792513,0.16963054,119310.0,119300.0,0.67675279]
[1752704792732,0.17801192,119310.0,119300.0,0.67675279]
[1752704793628,0.17801192,119310.0,119300.0,0.5091082]
[1752704793848,0.17801192,119310.0,119300.0,0.18735501]
[1752704794082,0.17801192,119310.0,119300.0,0.5239829]
[1752704794779,0.17801192,119310.0,119300.0,0.69162749]
[1752704795202,0.17801192,119310.0,119300.0,0.35499951]
[1752704795420,0.17801192,119310.0,119300.0,0.36338173]
[1752704795961,0.18639309,119310.0,119300.0,0.36338173]
[1752704796067,0.01038103,119310.0,119300.0,0.81066581]
[1752704796300,0.02714316,119310.0,119300.0,0.81066581]
[1752704796534,0.03552468,119310.0,119300.0,0.45727416]
[1752704796765,0.20315578,119310.0,119300.0,0.79390214]
[1752704796995,0.19477475,119310.0,119300.0,0.77713777]
[1752704797223,0.17801206,119310.0,119300.0,0.2728652]
[1752704797910,0.17801206,119310.0,119300.0,0.02345492]
[1752704798176,0.17801206,119310.0,119300.0,0.18723492]
[1752704798648,0.17801206,119310.0,119300.0,0.69150749]
[1752704799152,0.17801206,119310.0,119300.0,0.3921829]
[1752704799388,0.17801206,119310.0,119300.0,0.5238629]
[1752704799620,0.17801206,119310.0,119300.0,0.18723492]
[1752704800096,0.17801206,119310.0,119300.0,0.18722543]
[1752704800326,0.17801206,119310.0,119300.0,0.35487002]
[1752704800560,0.17801206,119310.0,119300.0,0.18722543]
[1752704801797,0.17801206,119310.0,119300.0,0.18714543]
[1752704802067,0.17801206,119310.0,119300.0,0.35479002]
[1752704802315,0.17801206,119310.0,119300.0,0.15191543]
[1752704803194,0.17801206,119310.0,119300.0,0.15501543]
[1752704804273,0.17801206,119310.0,119300.0,0.02341543]
[1752704804493,0.17801206,119310.0,119300.0,0.15485543]
[1752704804754,0.17801206,119310.0,119300.0,0.18615543]
[1752704806326,0.17801206,119310.0,119300.0,0.17045543]
[1752704806582,0.17801206,119310.0,119300.0,0.15485543]
[1752704807086,0.17801206,119310.0,119300.0,0.18665543]
[1752704808620,0.17801206,119310.0,119300.0,0.17179022]
[1752704808852,0.17801206,119310.0,119300.0,0.18564021]
[1752704810800,0.16795426,119310.0,119300.0,0.52226819]
[1752704811018,0.02514379,119310.0,119300.0,0.80056888]
[1752704811243,0.02514337,119310.0,119300.0,0.80056888]
[1752704811537,0.00838047,119320.0,119310.0,0.23285536]
[1752704811761,0.1927579,119320.0,119310.0,0.56867504]
[1752704811978,0.03352223,119320.0,119310.0,0.58015621]
[1752704812416,0.02514134,119320.0,119310.0,0.58853724]
[1752704812633,0.01676059,119320.0,119310.0,0.67404703]
[1752704812843,0.02514113,119320.0,119310.0,0.67404703]
[1752704813516,0.0419027,119320.0,119310.0,0.65728532]
[1752704813728,0.20951919,119320.0,119310.0,0.66566649]
[1752704813939,0.20951919,119320.0,119310.0,0.69182549]
[1752704814438,0.0419027,119320.0,119310.0,0.70020659]
[1752704814648,0.03352188,119320.0,119310.0,0.70858762]
[1752704814858,0.20113837,119320.0,119310.0,0.69182549]
[1752704815061,0.20951919,119320.0,119310.0,0.69182549]
[1752704815303,0.20951919,119320.0,119310.0,0.35519751]
[1752704815509,0.20951919,119320.0,119310.0,0.69182549]
[1752704815923,0.201139,119320.0,119310.0,0.69182549]
[1752704816062,0.201139,119320.0,119310.0,0.68344432]
[1752704816629,0.1927586,119320.0,119310.0,0.69182549]
[1752704817380,0.1927586,119320.0,119310.0,0.68344973]
[1752704817611,0.1927586,119320.0,119310.0,0.8230309]
[1752704818032,0.1927586,119320.0,119310.0,0.82302958]
[1752704818319,0.1927586,119320.0,119310.0,0.82302853]
[1752704819277,0.1927586,119320.0,119310.0,0.48640055]
[1752704819477,0.18437806,119320.0,119310.0,0.8146475]
[1752704819688,0.17599731,119320.0,119310.0,0.8146475]
[1752704819896,0.16761649,119320.0,119310.0,0.79788467]
[1752704820013,0.16761649,119320.0,119310.0,0.80626619]
[1752704820213,0.16761649,119320.0,119310.0,0.81464764]
[1752704820674,0.16761649,119320.0,119310.0,0.80917215]
[1752704821201,0.16594035,119320.0,119310.0,0.83071859]
[1752704821686,0.02514197,119320.0,119310.0,0.83909941]
[1752704821897,0.19275846,119320.0,119310.0,0.79719293]
[1752704822156,0.18437799,119320.0,119310.0,0.80557431]
[1752704822383,0.00838075,119320.0,119310.0,0.82233638]
[1752704822606,0.0335223,119320.0,119310.0,0.82233638]
[1752704822816,0.01676087,119320.0,119310.0,0.83071741]
[1752704823276,0.00838033,119320.0,119310.0,0.83071741]
[1752704823497,0.0167608,119320.0,119310.0,0.83071741]
[1752704823747,0.00838033,119320.0,119310.0,0.83071741]
[1752704823956,0.01676087,119320.0,119310.0,0.83071748]
[1752704824180,0.00838033,119320.0,119310.0,0.83909851]
[1752704824403,0.0167608,119320.0,119310.0,0.83909851]
[1752704824927,0.02514148,119320.0,119310.0,0.83071748]
[1752704825144,0.02514148,119320.0,119310.0,0.69113638]
[1752704825348,0.02514148,119320.0,119310.0,0.81751276]
[1752704825561,0.02514148,119320.0,119310.0,0.83067632]
[1752704826000,0.0167608,119320.0,119310.0,0.83905735]
[1752704826210,0.00838033,119320.0,119310.0,0.83905735]
[1752704826424,0.0167608,119320.0,119310.0,0.83905735]
[1752704826635,0.02514141,119320.0,119310.0,0.83905735]
[1752704827586,0.02514141,119320.0,119310.0,0.83067632]
[1752704827798,0.02514141,119320.0,119310.0,0.46890476]
[1752704827799,0.20113914,119320.0,119310.0,0.46890476]
[1752704828028,0.20113914,119320.0,119310.0,0.81391405]
[1752704828669,0.19275867,119320.0,119310.0,0.76545136]
[1752704828884,0.18639806,119320.0,119310.0,0.04142256]
[1752704829088,0.22069806,119320.0,119310.0,0.14524356]
[1752704829298,0.22069806,119320.0,119310.0,0.14724356]
[1752704830131,0.21231731,119320.0,119310.0,0.14724356]
[1752704830544,0.21231731,119320.0,119310.0,0.14524356]
[1752704831171,0.20226042,119320.0,119310.0,0.14524356]
[1752704834029,0.20226042,119320.0,119310.0,0.13208]
[1752704834297,0.20226042,119320.0,119310.0,0.01416496]
[1752704834512,0.20226042,119320.0,119310.0,0.14508496]
[1752704834801,0.20226042,119320.0,119310.0,0.14508631]
[1752704835564,0.5388884,119320.0,119310.0,0.01416631]
[1752704835773,0.5388884,119320.0,119310.0,0.14508631]
[1752704836259,0.5388884,119320.0,119310.0,0.01416631]
[1752704836467,0.4188107,119320.0,119310.0,0.01416631]
[1752704836694,0.75543868,119320.0,119310.0,0.01416631]
[1752704837569,0.4188107,119320.0,119310.0,0.01316631]
[1752704837822,0.75643868,119320.0,119310.0,0.01316631]
[1752704838293,0.96439868,119320.0,119310.0,0.01316631]
[1752704838499,1.09859868,119320.0,119310.0,0.01416631]
[1752704840387,1.43522666,119320.0,119310.0,0.01416631]
[1752704840610,1.43522666,119320.0,119310.0,1e-08]
[1752704844325,1.09859868,119320.0,119310.0,1e-08]
[1752704845321,1.43522666,119320.0,119310.0,1e-08]
[1752704847059,1.30402666,119320.0,119310.0,1e-08]
[1752704847262,1.09887868,119320.0,119310.0,1e-08]
[1752704848537,1.43550666,119320.0,119310.0,1e-08]
[1752704848700,1.43598666,119320.0,119310.0,1e-08]
[1752704849947,1.30402666,119320.0,119310.0,1e-08]
[1752704850150,1.43594666,119320.0,119310.0,1e-08]
[1752704851287,1.43590666,119320.0,119310.0,1e-08]
[1752704852124,1.43582666,119320.0,119310.0,1e-08]
[1752704852774,1.09919868,119320.0,119310.0,1e-08]
[1752704853655,0.7625707,119320.0,119310.0,1e-08]
[1752704854087,0.00838349,119280.0,119270.0,1e-08]
[1752704854307,1.44150243,119280.0,119270.0,1e-08]
[1752704854533,1.1225353,119280.0,119270.0,1e-08]
[1752704854741,0.78590732,119280.0,119270.0,1e-08]
[1752704854955,0.63920647,119280.0,119270.0,1e-08]
[1752704855163,0.53789619,119280.0,119270.0,1e-08]
[1752704855406,0.51821619,119280.0,119270.0,0.00196001]
[1752704855617,0.53229619,119280.0,119270.0,0.00100001]
[1752704855830,0.85792417,119280.0,119270.0,1e-08]
[1752704856254,0.85792417,119280.0,119270.0,0.00100001]
[1752704856255,0.86192417,119280.0,119270.0,0.00100001]
[1752704856439,0.87692417,119280.0,119270.0,0.00100001]
[1752704857074,0.96243445,119280.0,119270.0,0.00100001]
[1752704857332,0.64090647,119280.0,119270.0,0.00100001]
[1752704857471,0.97753445,119280.0,119270.0,0.00100001]
[1752704858075,0.64090647,119280.0,119270.0,0.00100001]
[1752704858448,0.97062677,119280.0,119270.0,0.00100001]
[1752704859277,0.86703649,119280.0,119270.0,0.00296001]
[1752704859503,0.18824851,119280.0,119270.0,0.00593001]
[1752704859964,0.18005619,119280.0,119270.0,0.03843001]
[1752704860414,0.18005619,119280.0,119270.0,0.00593001]
[1752704861295,0.18005619,119280.0,119270.0,0.18891677]
[1752704861516,0.18843961,119280.0,119270.0,0.54124475]
[1752704861728,0.02076691,119280.0,119270.0,0.54124475]
[1752704861937,0.02915019,119280.0,119270.0,0.54962894]
[1752704862180,0.02915019,119280.0,119270.0,0.5580132]
[1752704862391,0.008383,119280.0,119270.0,0.65929137]
[1752704862603,0.00838237,119290.0,119280.0,0.21523975]
[1752704862823,0.0251476,119290.0,119280.0,0.69505108]
[1752704863039,0.17602674,119300.0,119280.0,0.80029778]
[1752704863250,0.01676374,119300.0,119290.0,0.557618]
[1752704863467,0.19279083,119300.0,119290.0,0.30546864]
[1752704863678,0.18440889,119300.0,119290.0,0.13781]
[1752704864149,0.18656889,119300.0,119290.0,0.00196]
[1752704864356,0.52319687,119300.0,119290.0,0.13484]
[1752704865015,0.52319687,119300.0,119280.0,0.00297]
[1752704865016,0.17604143,119290.0,119280.0,0.00397]
[1752704865225,0.17604143,119290.0,119280.0,0.13781]
[1752704865434,0.17604143,119290.0,119280.0,0.00493]
[1752704865637,0.17604143,119290.0,119280.0,0.13777]
[1752704866081,0.17604143,119290.0,119280.0,0.14782339]
[1752704866722,0.17604143,119290.0,119280.0,0.01498339]
[1752704866928,0.17604143,119290.0,119280.0,0.14782339]
[1752704867131,0.18442415,119290.0,119280.0,0.31549609]
[1752704867351,0.17604143,119290.0,119280.0,0.31549609]
[1752704867762,0.17704143,119290.0,119280.0,0.31649609]
[1752704868095,0.17704143,119290.0,119280.0,0.01598339]
[1752704868316,0.17704143,119290.0,119280.0,0.14874339]
[1752704869436,0.17704143,119290.0,119280.0,0.13861]
[1752704869681,0.17704143,119290.0,119280.0,0.14867063]
[1752704870146,0.17704143,119290.0,119280.0,0.18057063]
[1752704870499,0.17704143,119290.0,119280.0,0.14867063]
[1752704870694,0.17704143,119290.0,119280.0,0.14859063]
[1752704870902,0.17704143,119290.0,119280.0,0.13853]
[1752704872856,0.17704143,119290.0,119280.0,0.13556]
[1752704873278,0.17704143,119290.0,119280.0,0.00296]
[1752704873529,0.17920143,119290.0,119280.0,0.13544]
[1752704874247,0.17920143,119290.0,119280.0,0.1356]
[1752704874463,0.18228143,119290.0,119280.0,0.1356]
[1752704874632,0.17920143,119290.0,119280.0,0.13564]
[1752704875184,0.18228143,119290.0,119280.0,0.13564]
[1752704875385,0.18228143,119290.0,119280.0,0.14570039]
[1752704876584,0.7033711,119290.0,119280.0,0.01106039]
[1752704876799,1.0433711,119290.0,119280.0,0.01106039]
[1752704877004,1.0433711,119290.0,119280.0,0.01231039]
[1752704877631,1.0423711,119290.0,119280.0,0.01131039]
[1752704877854,0.77231171,119290.0,119280.0,0.01131039]
[1752704878110,0.97601969,119290.0,119280.0,0.01131039]
[1752704878344,0.97601969,119290.0,119280.0,0.01130989]
[1752704878345,1.10893969,119290.0,119280.0,0.01130989]
[1752704878570,1.10793969,119290.0,119280.0,0.01130989]
[1752704878818,0.97501969,119290.0,119280.0,0.01130989]
[1752704878997,0.97801969,119290.0,119280.0,0.01231048]
[1752704880631,0.97801969,119290.0,119280.0,0.00225]
[1752704891383,1.11065969,119290.0,119280.0,0.00225]
[1752704904539,0.97801969,119290.0,119280.0,0.00225]
[1752704904753,1.11009969,119290.0,119280.0,0.00225]
[1752704906816,1.11009969,119290.0,119280.0,0.01233192]
[1752704909123,0.17904143,119290.0,119280.0,0.04879192]
[1752704909576,0.17904143,119290.0,119280.0,0.04879949]
[1752704910831,0.17604143,119290.0,119280.0,0.04779949]
[1752704911123,0.17704143,119290.0,119280.0,0.04779949]
[1752704912220,0.17704143,119290.0,119280.0,0.03771]
[1752704912439,0.17704143,119290.0,119280.0,0.04778805]
[1752704913512,0.17704143,119290.0,119280.0,0.04778602]
[1752704914553,0.17704143,119290.0,119280.0,0.0477825]
[1752704917410,0.17704143,119290.0,119280.0,0.1793825]
[1752704921315,0.17704143,119290.0,119280.0,0.17911581]
[1752704921760,0.17910143,119290.0,119280.0,0.01318581]